bitfinex/quotes_ETHUSD_20251214
["timestamp","ask_amount","ask_price","bid_price","bid_amount"]
[1765711804274,6.26655112,3095.9,3095.8,0.002]
[1765711804673,6.77677231,3095.9,3095.8,0.002]
[1765711805576,0.80839302,3095.9,3095.8,0.4545]
[1765711805754,0.64039142,3095.9,3095.8,0.4545]
[1765711805961,1.03523071,3095.9,3095.8,0.4545]
[1765711806158,0.52423071,3095.9,3095.8,0.4545]
[1765711806356,1.55998351,3095.9,3095.8,0.002]
[1765711806580,1.85853471,3095.9,3095.8,0.002]
[1765711806879,2.11206452,3095.9,3095.8,0.002]
[1765711807256,1.69426452,3095.9,3095.8,0.4545]
[1765711807648,1.03523071,3095.9,3095.8,0.9507]
[1765711807851,1.03523071,3095.9,3095.8,0.4545]
[1765711808673,1.44073471,3095.9,3095.8,0.9507]
[1765711808978,0.93894262,3095.9,3095.8,0.9507]
[1765711809175,0.64039142,3095.9,3095.8,0.002]
[1765711809375,0.73667951,3095.9,3095.8,0.002]
[1765711809575,0.92973471,3095.9,3095.8,0.4545]
[1765711809761,1.14218351,3095.9,3095.8,0.4545]
[1765711809956,1.44073471,3095.9,3095.8,0.4545]
[1765711810167,1.44073471,3095.9,3095.8,0.002]
[1765711810656,1.44073471,3095.9,3095.8,0.4545]
[1765711811379,1.44073471,3095.9,3095.8,0.002]
[1765711811565,1.44073471,3095.9,3095.8,0.4545]
[1765711811767,1.85773471,3095.9,3095.8,0.002]
[1765711811948,3.09501228,3095.9,3095.8,0.002]
[1765711812149,2.63361228,3095.9,3095.8,0.002]
[1765711812711,2.63401228,3095.9,3095.8,0.002]
[1765711812878,6.03301228,3095.9,3095.8,0.002]
[1765711813078,5.61561228,3095.9,3095.8,0.002]
[1765711813286,2.67881228,3095.9,3095.8,0.002]
[1765711813667,3.28951228,3095.9,3095.8,0.002]
[1765711813980,2.63361228,3095.9,3095.8,0.002]
[1765711815287,2.63401228,3095.9,3095.8,0.002]
[1765711815885,2.21661228,3095.9,3095.8,0.4545]
[1765711816262,1.70561228,3095.9,3095.8,0.4545]
[1765711816486,3.28911228,3095.9,3095.8,0.002]
[1765711816671,6.68811228,3095.9,3095.8,0.002]
[1765711816985,5.10461228,3095.9,3095.8,0.4545]
[1765711817157,6.03301228,3095.9,3095.8,0.002]
[1765711817791,6.49391228,3095.9,3095.8,0.002]
[1765711820384,0.42794262,3095.9,3095.8,0.9507]
[1765711820604,0.511,3096.2,3095.8,0.9507]
[1765711820765,0.42789325,3096.1,3095.8,0.4545]
[1765711820960,0.2985512,3096.0,3095.8,0.9507]
[1765711821178,0.7040552,3095.9,3095.8,0.002]
[1765711821368,0.916504,3095.9,3095.8,0.002]
[1765711821575,1.2150552,3095.9,3095.8,0.002]
[1765711822105,1.6346552,3095.9,3095.8,0.002]
[1765711822293,2.2901552,3095.9,3095.8,0.002]
[1765711822665,6.26963049,3095.9,3095.8,0.002]
[1765711822990,6.60414395,3095.9,3095.8,0.002]
[1765711823165,4.38497929,3095.8,3095.7,0.002]
[1765711823367,5.56493049,3095.8,3095.7,0.002]
[1765711824068,4.84717929,3095.3,3095.2,1.61285]
[1765711824262,0.405504,3095.0,3094.5,1.627]
[1765711824466,37.94668686,3094.9,3094.8,1.41604463]
[1765711824794,37.94668686,3094.9,3094.5,1.627]
[1765711824795,3.97947529,3094.8,3094.5,1.627]
[1765711824995,24.25322649,3094.8,3094.5,1.627]
[1765711825169,34.68773049,3094.8,3094.5,1.627]
[1765711825364,5.20073049,3094.8,3094.5,1.627]
[1765711825572,0.7040552,3094.8,3094.7,2.0878]
[1765711825876,0.2985512,3094.8,3094.7,2.5549]
[1765711826085,0.8115512,3094.8,3094.7,2.5549]
[1765711826297,0.97096648,3094.9,3094.7,1.625]
[1765711826470,0.29880143,3094.8,3094.7,2.1225]
[1765711826672,1.48347648,3094.8,3094.7,1.625]
[1765711826866,1.78227791,3094.8,3094.7,2.1128]
[1765711827071,1.78227791,3094.8,3094.7,2.6103]
[1765711828072,2.18778191,3094.8,3094.7,2.6103]
[1765711828404,1.78227791,3094.8,3094.7,2.6103]
[1765711829097,1.78227791,3094.8,3094.7,2.1128]
[1765711829798,2.3660097,3094.8,3094.7,1.625]
[1765711829985,2.3660097,3094.8,3094.7,2.1128]
[1765711829986,2.18778191,3094.8,3094.7,2.1128]
[1765711830396,2.18778191,3094.8,3094.7,2.6103]
[1765711830706,1.67478191,3094.8,3094.7,2.6103]
[1765711830918,1.78227791,3094.8,3094.7,2.6103]
[1765711831083,0.81180143,3094.8,3094.7,2.6103]
[1765711831276,0.09628809,3095.3,3094.7,3.03403]
[1765711831484,1.78236042,3095.2,3094.8,0.4975]
[1765711831689,0.81200322,3095.1,3094.8,0.68]
[1765711832114,0.81200322,3095.1,3095.0,0.4878]
[1765711832323,0.29900322,3095.1,3095.0,0.4878]
[1765711832507,0.29900322,3095.4,3095.0,0.9853]
[1765711832683,0.513,3095.5,3095.0,0.4975]
[1765711832684,0.29900322,3095.3,3095.0,0.4975]
[1765711833023,0.39529131,3095.4,3095.1,0.4975]
[1765711833194,0.09628809,3095.2,3095.1,0.4975]
[1765711833599,0.09628809,3095.2,3095.1,0.9853]
[1765711833983,0.405504,3095.1,3094.7,1.625]
[1765711834189,0.09628809,3094.8,3094.7,1.625]
[1765711834519,0.513,3094.8,3094.7,1.625]
[1765711834693,0.81200322,3094.8,3094.7,2.1128]
[1765711834892,0.81200322,3094.8,3094.7,2.6103]
[1765711835119,0.81200322,3094.8,3094.7,1.625]
[1765711835432,1.62400644,3094.8,3094.7,1.625]
[1765711835743,1.82593989,3094.8,3094.7,1.625]
[1765711835889,1.68853989,3094.8,3094.7,2.6103]
[1765711836081,2.20153989,3094.8,3094.7,2.6103]
[1765711836485,1.68853989,3094.8,3094.7,2.6103]
[1765711836831,1.28303589,3094.8,3094.7,2.6103]
[1765711837004,1.62400644,3094.8,3094.7,2.6103]
[1765711837819,1.11100644,3094.8,3094.7,2.6103]
[1765711838020,1.62400644,3094.8,3094.7,2.6103]
[1765711838203,1.11100644,3094.8,3094.7,2.6103]
[1765711838715,0.29900322,3094.8,3094.7,2.6103]
[1765711838898,0.513,3094.8,3094.7,2.6103]
[1765711839319,1.34006416,3094.8,3094.7,1.575]
[1765711839510,1.63906738,3094.8,3094.7,1.575]
[1765711840098,1.50166738,3094.8,3094.7,2.0628]
[1765711840302,0.98866738,3094.8,3094.7,2.0628]
[1765711840497,1.50166738,3094.8,3094.7,1.575]
[1765711840918,1.50166738,3094.8,3094.7,2.5603]
[1765711841120,1.50166738,3094.8,3094.7,1.575]
[1765711841417,1.12606738,3094.8,3094.7,1.575]
[1765711841601,1.63906738,3094.8,3094.7,1.575]
[1765711841790,1.50166738,3094.8,3094.7,2.0628]
[1765711841992,0.39529131,3094.8,3094.7,2.5603]
[1765711842293,0.90829131,3094.8,3094.7,2.5603]
[1765711843006,1.4887666,3094.8,3094.7,2.5603]
[1765711843205,1.4887666,3094.8,3094.7,2.0628]
[1765711843424,2.12476541,3094.8,3094.7,2.0628]
[1765711843814,1.61176541,3094.8,3094.7,2.0628]
[1765711844016,2.12476541,3094.8,3094.7,2.0628]
[1765711844422,2.53026941,3094.8,3094.7,1.575]
[1765711844607,7.03720869,3094.8,3094.7,1.575]
[1765711845916,7.17460869,3094.8,3094.7,1.575]
[1765711847801,6.52420869,3094.8,3094.7,1.575]
[1765711848001,6.38680869,3094.8,3094.7,1.575]
[1765711848221,7.03720869,3094.8,3094.7,1.575]
[1765711848910,7.03714069,3094.8,3094.7,1.575]
[1765711849111,6.52414069,3094.8,3094.7,1.575]
[1765711849313,7.03714069,3094.8,3094.7,1.575]
[1765711849497,7.17454069,3094.8,3094.7,1.575]
[1765711851117,7.17554069,3094.8,3094.7,1.575]
[1765711851833,6.66254069,3094.8,3094.7,1.36481032]
[1765711852030,9.57554069,3094.8,3094.7,1.36481032]
[1765711853929,39.06254069,3094.8,3094.7,1.36481032]
[1765711854333,22.8473486,3094.8,3094.7,1.36481032]
[1765711854521,8.9363486,3094.8,3094.7,1.36481032]
[1765711854834,9.4792526,3094.8,3094.7,1.36481032]
[1765711855031,39.4792526,3094.8,3094.7,1.36481032]
[1765711856301,9.4792526,3094.8,3094.7,1.36481032]
[1765711856831,39.4792526,3094.8,3094.7,1.36481032]
[1765711857037,33.804504,3094.6,3094.5,1.627]
[1765711857340,34.82131451,3094.6,3094.5,1.627]
[1765711857534,44.48126738,3094.5,3093.4,1.581]
[1765711857764,3.90079209,3093.5,3093.4,1.581]
[1765711857941,1.28491451,3093.5,3093.4,1.581]
[1765711858101,1.3812026,3093.5,3093.4,2.5187]
[1765711858305,1.3812026,3093.5,3093.4,1.581]
[1765711858306,2.256013,3093.5,3093.4,1.581]
[1765711858522,2.256013,3093.5,3093.4,2.5187]
[1765711858833,2.256013,3093.5,3093.4,2.2687]
[1765711858834,2.769013,3093.5,3093.4,2.2687]
[1765711859332,2.769013,3093.5,3093.4,1.331]
[1765711859506,3.0459143,3093.5,3093.4,1.331]
[1765711859704,6.4449143,3093.5,3093.4,1.331]
[1765711860822,6.5823143,3093.5,3093.4,1.331]
[1765711861431,6.4449143,3093.5,3093.4,1.331]
[1765711861637,1.850509,3093.5,3093.4,2.2687]
[1765711861941,0.97109849,3093.5,3093.4,2.2687]
[1765711862620,1.37660249,3093.5,3093.4,2.2687]
[1765711862816,0.97109849,3093.5,3093.4,2.2687]
[1765711863044,0.513,3093.9,3093.4,2.2687]
[1765711863219,0.29878747,3094.2,3093.8,0.4622]
[1765711863541,0.29878747,3094.2,3093.4,1.55827]
[1765711863542,0.29878747,3094.4,3094.1,0.6542]
[1765711863743,0.29878747,3094.3,3094.1,0.192]
[1765711864043,0.513,3094.3,3094.2,0.4755]
[1765711864344,0.29878747,3094.4,3094.2,0.9377]
[1765711864638,0.81178747,3094.4,3094.3,0.4622]
[1765711864848,0.81178747,3094.4,3094.3,0.9377]
[1765711865053,0.29878747,3094.4,3094.3,0.9377]
[1765711866442,1.48379995,3094.5,3094.3,0.9377]
[1765711866617,1.48379995,3094.5,3094.4,0.9377]
[1765711866937,1.78278761,3094.5,3094.4,0.9377]
[1765711867121,1.26978761,3094.5,3094.4,0.9377]
[1765711867751,1.2697907,3094.5,3094.4,0.9377]
[1765711868621,0.001,3094.8,3094.4,0.9377]
[1765711868824,0.405504,3094.7,3094.3,0.002]
[1765711869037,1.344204,3094.8,3094.3,0.4775]
[1765711869038,0.98796846,3094.6,3094.3,0.4775]
[1765711869243,0.29899766,3094.5,3094.3,0.4775]
[1765711869475,0.29899766,3094.5,3094.3,0.002]
[1765711869773,1.31478975,3094.4,3094.3,0.4775]
[1765711870146,1.31478975,3094.4,3094.3,0.4642]
[1765711870147,0.80078975,3094.4,3094.3,0.4642]
[1765711870353,1.31478975,3094.4,3094.3,0.002]
[1765711870764,0.80078975,3094.4,3094.3,0.002]
[1765711870979,1.01579209,3094.4,3094.3,0.9397]
[1765711871283,1.31478975,3094.4,3094.3,0.002]
[1765711871661,1.31478975,3094.4,3094.3,0.4642]
[1765711872266,1.31478975,3094.4,3094.3,0.9397]
[1765711872580,1.31478975,3094.4,3094.3,0.002]
[1765711873276,1.45218975,3094.4,3094.3,0.002]
[1765711873462,30.405504,3094.3,3093.4,1.331]
[1765711873645,0.63919209,3093.5,3093.4,1.331]
[1765711873845,1.31478975,3093.5,3093.4,1.331]
[1765711874040,0.80078975,3093.5,3093.4,1.331]
[1765711874245,1.36625537,3093.5,3093.4,2.2687]
[1765711874446,1.88025537,3093.5,3093.4,1.7932]
[1765711874675,1.88025537,3093.5,3093.4,1.331]
[1765711875175,23.2882721,3090.0,3089.9,27.85142069]
[1765711875348,23.2882721,3090.0,3089.9,28.26210475]
[1765711875548,23.2882721,3090.0,3089.9,29.30478004]
[1765711875756,23.2882721,3090.0,3089.9,29.12980875]
[1765711876047,23.2882721,3090.0,3089.9,32.63000106]
[1765711876246,23.2882721,3090.0,3089.9,32.15599546]
[1765711876645,23.2882721,3090.0,3089.9,32.56149946]
[1765711876839,23.1172721,3090.0,3089.9,32.56149946]
[1765711877040,22.6792721,3090.0,3089.9,31.95249946]
[1765711877244,22.6252721,3090.0,3089.9,32.35999946]
[1765711877445,17.18402034,3090.0,3089.9,28.37028244]
[1765711877647,12.10236564,3090.0,3089.9,23.46728244]
[1765711877874,9.85136564,3090.0,3089.9,21.23028244]
[1765711878375,8.83836564,3090.0,3089.9,20.21728244]
[1765711878963,8.10251032,3090.0,3089.9,20.21728244]
[1765711879175,4.76351032,3090.0,3089.9,16.87828244]
[1765711880480,4.56251032,3090.0,3089.9,16.67728244]
[1765711880681,3.40551032,3090.0,3089.9,15.51728244]
[1765711881251,2.85551032,3090.0,3089.9,15.52728243]
[1765711881980,0.03234481,3093.0,3091.5,0.405504]
[1765711882189,0.514,3093.4,3092.1,9.768921]
[1765711882356,0.514,3093.4,3092.3,9.768921]
[1765711882755,0.54988809,3093.9,3092.3,9.768921]
[1765711882956,0.514,3093.8,3092.3,9.768921]
[1765711883174,0.54988809,3093.9,3092.3,9.768921]
[1765711883377,0.514,3093.8,3092.3,9.768921]
[1765711883681,0.1875,3094.0,3092.3,9.768921]
[1765711883889,1.2,3093.5,3092.3,9.768921]
[1765711884051,1.2,3093.5,3092.4,0.98597929]
[1765711884253,1.2,3093.5,3092.6,0.58047529]
[1765711884480,1.2,3093.5,3092.8,9.768921]
[1765711885772,1.2,3093.5,3092.8,2.8]
[1765711887586,0.4906,3094.4,3093.0,9.768921]
[1765711887756,0.001,3094.4,3093.2,9.768921]
[1765711887951,0.001,3094.4,3093.4,9.768921]
[1765711888163,0.001,3094.4,3093.8,2.8]
[1765711888386,0.001,3094.4,3093.7,0.58047529]
[1765711888685,0.001,3094.4,3093.6,9.768921]
[1765711888984,0.001,3094.4,3093.8,9.768921]
[1765711889182,0.001,3094.4,3093.9,0.514]
[1765711889384,0.001,3094.4,3094.0,9.768921]
[1765711890182,0.001,3094.4,3093.7,0.58047529]
[1765711890183,0.001,3094.4,3094.2,9.768921]
[1765711891082,0.001,3094.4,3094.2,2.8]
[1765711891283,0.001,3094.4,3093.5,0.514]
[1765711891580,0.001,3094.4,3093.6,9.768921]
[1765711891950,0.001,3094.4,3093.8,9.768921]
[1765711892150,0.001,3094.4,3094.0,9.768921]
[1765711892584,0.001,3094.4,3094.0,2.8]
[1765711893367,0.001,3094.4,3094.0,9.768921]
[1765711894906,0.001,3094.4,3094.3,20.174425]
[1765711895067,0.001,3094.8,3094.5,0.98597929]
[1765711895313,0.001,3094.8,3094.6,9.767921]
[1765711895575,0.001,3094.8,3094.7,10.281921]
[1765711896379,0.001,3094.8,3094.7,10.86239629]
[1765711896683,0.001,3094.8,3094.7,11.26790029]
[1765711899198,0.001,3094.8,3094.7,10.86239629]
[1765711899761,0.001,3094.8,3094.7,11.26790029]
[1765711899982,0.001,3094.8,3094.7,21.26790029]
[1765711900188,0.001,3094.8,3094.7,11.26790029]
[1765711900387,0.001,3094.8,3094.7,10.281921]
[1765711900590,0.001,3094.8,3094.7,10.86239629]
[1765711902818,0.001,3094.8,3094.7,11.26790029]
[1765711906983,0.001,3094.8,3094.7,21.26790029]
[1765711907182,0.001,3094.8,3094.7,11.26790029]
[1765711909897,0.001,3094.8,3094.7,4.29897929]
[1765711910221,0.001,3094.8,3094.7,11.26790029]
[1765711912702,0.001,3094.8,3094.7,0.514]
[1765711912883,0.001,3094.8,3094.7,10.86239629]
[1765711913085,0.001,3094.8,3094.7,10.281921]
[1765711913406,0.001,3094.8,3094.7,11.26790029]
[1765711915716,0.001,3094.8,3094.7,10.86239629]
[1765711918120,0.001,3094.8,3094.7,1.09447529]
[1765711918298,0.001,3094.8,3094.7,10.86239629]
[1765711918716,0.9133,3094.8,3094.7,10.86239629]
[1765711919217,0.001,3094.8,3094.7,10.86239629]
[1765711920297,0.9133,3094.8,3094.7,3.313]
[1765711921235,0.001,3094.8,3094.7,11.26790029]
[1765711922315,0.001,3094.8,3094.7,21.26790029]
[1765711922633,0.001,3094.8,3094.7,11.26790029]
[1765711927010,0.001,3094.8,3094.7,8.48297929]
[1765711927534,0.001,3094.8,3094.7,11.26790029]
[1765711927704,0.4607,3094.8,3094.7,6.921]
[1765711927905,0.4607,3094.8,3094.7,9.647]
[1765711927906,0.9133,3094.8,3094.7,9.647]
[1765711928331,0.9133,3094.8,3094.7,3.89347529]
[1765711928739,0.9133,3094.8,3094.7,10.86239629]
[1765711928941,0.9133,3094.8,3094.7,10.281921]
[1765711929125,0.9133,3094.8,3094.7,3.313]
[1765711929329,0.001,3094.8,3094.7,3.313]
[1765711930045,0.4607,3094.8,3094.7,3.313]
[1765711930412,0.9133,3094.8,3094.7,3.313]
[1765711936752,0.001,3094.8,3094.7,3.313]
[1765711937247,0.001,3094.8,3094.7,10.281921]
[1765711937454,0.001,3094.8,3094.7,10.86239629]
[1765711941241,0.001,3094.8,3094.7,4.29897929]
[1765711941420,0.001,3094.8,3094.7,11.26790029]
[1765711942323,0.001,3094.8,3094.7,1.49997929]
[1765711942652,0.001,3094.8,3094.7,11.26790029]
[1765711943423,0.001,3094.8,3094.7,21.26790029]
[1765711943624,0.001,3094.8,3094.7,11.26790029]
[1765711947272,0.001,3095.7,3095.3,0.405504]
[1765711947563,0.001,3095.7,3095.6,10.34739629]
[1765711947745,0.001,3095.7,3095.6,10.75290029]
[1765711951336,0.001,3095.7,3095.6,3.78397929]
[1765711951536,0.001,3095.7,3095.6,20.75290029]
[1765711951773,0.001,3095.7,3095.6,10.75290029]
[1765711953277,0.9225,3095.7,3095.6,10.34739629]
[1765711953484,0.9225,3095.7,3095.6,10.44447529]
[1765711953653,0.9225,3095.7,3095.6,3.89147529]
[1765711954242,0.9225,3095.7,3095.6,10.86039629]
[1765711955172,0.001,3095.7,3095.6,10.86039629]
[1765711955411,0.4514,3095.7,3095.6,10.86039629]
[1765711955742,0.9225,3095.7,3095.6,10.86039629]
[1765711960258,0.9225,3095.7,3095.6,10.279921]
[1765711963970,0.4514,3095.7,3095.6,10.279921]
[1765711965182,0.001,3095.7,3095.6,10.279921]
[1765711966058,0.001,3095.7,3095.6,11.65270101]
[1765711966257,0.001,3095.7,3095.6,11.26590029]
[1765711969085,0.001,3095.7,3095.6,11.65270101]
[1765711969261,0.001,3095.7,3095.6,11.26590029]
[1765711973164,0.001,3095.7,3095.6,1.49897929]
[1765711973365,0.001,3095.7,3095.6,11.26590029]
[1765711974814,0.001,3096.1,3096.0,20.75190029]
[1765711975010,0.001,3096.1,3096.0,11.26490029]
[1765711975513,0.4514,3096.1,3096.0,11.26490029]
[1765711976866,0.9113,3096.1,3096.0,2.797]
[1765711977183,0.9113,3096.1,3095.7,9.687]
[1765711977382,0.6665,3095.8,3095.7,2.797]
[1765711977586,0.6665,3095.8,3095.7,3.37747529]
[1765711977782,0.4599,3096.0,3095.8,2.797]
[1765711978094,0.1983,3095.9,3095.8,9.765921]
[1765711978283,0.6665,3095.9,3095.8,9.765921]
[1765711978490,1.1264,3095.9,3095.8,9.765921]
[1765711979193,1.1274,3095.9,3095.8,9.765921]
[1765711980999,1.1274,3095.9,3094.9,9.765921]
[1765711981204,1.1274,3095.9,3095.1,9.765921]
[1765711981205,0.9281,3095.8,3095.1,9.765921]
[1765711981496,0.9281,3095.8,3095.3,9.765921]
[1765711981670,0.4599,3095.7,3095.5,2.797]
[1765711982100,0.4682,3095.6,3095.5,2.797]
[1765711982594,0.9281,3095.6,3095.5,2.797]
[1765711983970,0.9281,3095.6,3094.8,0.002]
[1765711983971,0.9281,3095.6,3094.9,10.278921]
[1765711984305,0.4599,3095.5,3095.0,9.765921]
[1765711984900,0.4682,3095.1,3095.0,9.765921]
[1765711985274,0.9281,3095.1,3095.0,9.765921]
[1765711986303,0.9281,3095.1,3095.0,5.123]
[1765711986968,0.9281,3095.1,3095.0,2.797]
[1765711990611,0.4599,3095.6,3095.0,2.797]
[1765711990796,0.4599,3095.6,3095.1,19.765921]
[1765711990979,0.4599,3095.6,3095.0,9.765921]
[1765711991511,0.4682,3095.1,3095.0,9.765921]
[1765711992381,0.9281,3095.1,3095.0,9.765921]
[1765711993582,0.4682,3095.1,3095.0,9.765921]
[1765711993784,0.4599,3095.4,3095.0,9.765921]
[1765711994189,0.001,3095.7,3095.0,9.765921]
[1765711994414,0.4609,3095.7,3095.1,9.765921]
[1765711996015,0.001,3095.7,3095.3,9.765921]
[1765711996311,0.001,3095.7,3095.5,9.765921]
[1765711997101,0.001,3095.7,3095.6,10.34639629]
[1765711998217,0.4692,3095.7,3095.6,10.34639629]
[1765711998402,0.001,3095.7,3095.6,10.34639629]
[1765711999016,0.001,3095.7,3095.6,3.37747529]
[1765711999221,0.001,3095.7,3095.6,10.34639629]
[1765711999717,0.4692,3095.7,3095.6,10.34639629]
[1765712000993,0.001,3095.7,3095.6,10.34639629]
[1765712003599,0.001,3095.7,3095.6,10.75190029]
[1765712005123,0.001,3095.7,3095.6,3.78297929]
[1765712005310,0.001,3095.7,3095.6,20.75190029]
[1765712005511,0.001,3095.7,3095.6,10.75190029]
[1765712005825,0.4723,3095.7,3095.6,10.34639629]
[1765712007328,0.9455,3095.7,3095.6,10.34639629]
[1765712007531,0.9455,3095.7,3095.6,10.85839629]
[1765712009032,0.9455,3095.7,3095.6,10.277921]
[1765712009233,0.9455,3095.7,3095.1,9.765921]
[1765712009399,0.4732,3095.6,3095.3,2.797]
[1765712010033,0.4743,3095.4,3095.3,2.797]
[1765712010606,0.9475,3095.4,3095.3,2.797]
[1765712014713,0.9475,3095.4,3095.1,2.797]
[1765712014929,0.4732,3095.3,3095.1,2.797]
[1765712015131,0.4743,3095.2,3095.1,2.797]
[1765712015523,0.9475,3095.2,3095.1,2.797]
[1765712020641,1.65201849,3095.2,3095.1,2.797]
[1765712020821,1.82684915,3095.2,3095.1,2.797]
[1765712021224,1.52783466,3095.2,3095.1,2.797]
[1765712021532,2.32665311,3095.2,3095.1,2.797]
[1765712021746,2.32665311,3095.2,3095.0,0.002]
[1765712021954,2.84057622,3095.1,3095.0,0.002]
[1765712022260,3.23266731,3095.1,3095.0,0.002]
[1765712022478,0.98597929,3094.9,3094.8,0.002]
[1765712022627,0.405504,3094.8,3094.0,0.002]
[1765712022825,0.405504,3094.4,3094.0,0.002]
[1765712023055,0.4743,3094.1,3094.0,0.099]
[1765712023568,1.48243059,3094.1,3094.0,0.002]
[1765712023863,1.7213128,3094.1,3094.0,0.002]
[1765712028361,2.2333128,3094.1,3094.0,0.002]
[1765712028665,0.405504,3094.0,3093.8,0.002]
[1765712028863,1.63119209,3093.9,3093.8,0.002]
[1765712029028,2.43974957,3093.9,3093.8,0.002]
[1765712029224,0.405504,3093.8,3092.6,0.002]
[1765712029465,1.64956148,3093.8,3092.6,0.002]
[1765712030747,2.44547929,3093.8,3092.6,0.002]
[1765712031368,1.93347929,3093.8,3092.7,0.002]
[1765712031666,2.44547929,3093.8,3092.7,0.002]
[1765712031859,2.17125608,3093.8,3092.7,0.002]
[1765712032263,1.25375208,3093.8,3092.7,0.002]
[1765712032558,1.4595,3093.8,3092.7,0.002]
[1765712032770,1.865004,3093.8,3092.7,0.002]
[1765712032969,1.93347929,3093.8,3092.7,0.002]
[1765712033135,2.44547929,3093.8,3092.7,0.002]
[1765712033334,2.03997529,3093.8,3092.7,0.002]
[1765712033536,2.27179163,3093.8,3092.7,0.002]
[1765712033736,2.67729563,3093.8,3092.7,0.002]
[1765712034041,0.405504,3093.7,3092.7,0.002]
[1765712034250,1.48909209,3093.6,3092.7,0.002]
[1765712034452,1.392804,3093.6,3092.7,0.002]
[1765712034655,1.69223859,3093.6,3092.7,0.002]
[1765712034856,2.20523859,3093.6,3092.7,0.002]
[1765712035660,2.2375834,3093.6,3092.7,0.002]
[1765712038686,2.20523859,3093.6,3092.7,0.002]
[1765712038891,2.2375834,3093.6,3092.7,0.002]
[1765712039049,2.53404575,3093.6,3092.7,0.002]
[1765712039254,3.11452104,3093.6,3092.7,0.002]
[1765712040180,3.08217623,3093.6,3092.7,0.002]
[1765712040744,13.00952104,3093.6,3092.7,0.002]
[1765712040980,12.97717623,3093.6,3092.7,0.002]
[1765712041377,6.48717623,3093.6,3092.7,0.002]
[1765712044683,33.810504,3093.2,3092.7,0.002]
[1765712044991,4.39097929,3092.9,3092.7,0.002]
[1765712045184,3.810504,3092.4,3092.2,0.002]
[1765712045361,1.06627529,3092.7,3091.5,0.002]
[1765712045362,0.405504,3092.2,3091.5,0.002]
[1765712045566,0.98597929,3091.5,3091.0,0.002]
[1765712045795,4.0733,3091.6,3091.0,0.002]
[1765712045796,0.891304,3091.1,3091.0,0.002]
[1765712045993,1.18776635,3091.1,3091.0,0.002]
[1765712046196,5.66494164,3091.1,3091.0,0.002]
[1765712046396,0.58047529,3091.0,3089.9,0.0164]
[1765712046570,0.513,3090.9,3090.0,0.0164]
[1765712046771,0.513,3091.0,3090.0,0.0164]
[1765712046972,0.588004,3091.6,3090.0,0.0164]
[1765712046973,0.513,3091.2,3091.0,0.0164]
[1765712048269,0.4858,3091.1,3089.7,0.58047529]
[1765712048496,0.4858,3091.1,3088.8,0.58047529]
[1765712048497,0.513,3091.0,3089.5,0.58047529]
[1765712048799,0.513,3091.0,3089.8,6.968921]
[1765712049096,0.513,3091.0,3090.9,0.0164]
[1765712049299,0.513,3091.0,3089.2,0.0164]
[1765712049300,0.513,3091.0,3089.2,0.421904]
[1765712049502,0.513,3091.0,3089.6,0.58047529]
[1765712049806,0.513,3091.1,3089.9,6.968921]
[1765712050170,0.29691386,3091.0,3090.1,6.968921]
[1765712050516,0.513,3091.2,3091.0,0.0164]
[1765712050700,0.29703084,3091.1,3091.0,0.0164]
[1765712050894,0.97151674,3091.4,3091.1,0.0164]
[1765712051206,0.29703507,3091.3,3090.7,0.0164]
[1765712051395,0.6425234,3091.5,3090.7,0.0164]
[1765712051594,0.2971996,3091.4,3091.2,0.0164]
[1765712051789,0.6425234,3091.5,3090.7,0.0164]
[1765712051790,0.2971996,3091.3,3090.7,0.0164]
[1765712051995,0.29719816,3091.2,3090.4,0.0164]
[1765712052298,0.4917,3091.4,3089.9,2.877]
[1765712052299,0.2973553,3091.1,3089.9,2.877]
[1765712052503,0.8113553,3091.0,3090.0,0.0164]
[1765712052707,0.514,3091.0,3090.0,0.0164]
[1765712053071,0.29727766,3090.9,3090.0,0.0164]
[1765712053377,0.09628809,3091.4,3090.0,0.0164]
[1765712053378,0.514,3091.1,3090.0,0.0164]
[1765712053574,0.29735358,3091.0,3090.0,0.0164]
[1765712053773,0.29735396,3090.9,3090.0,0.0164]
[1765712053979,0.514,3091.2,3091.0,0.0164]
[1765712054291,0.29735479,3091.1,3091.0,0.0164]
[1765712054692,0.78315479,3091.1,3090.3,0.0164]
[1765712054893,0.29735479,3091.0,3090.3,0.0164]
[1765712055102,0.29735479,3090.9,3090.1,0.0164]
[1765712055282,1.0057,3091.3,3090.1,0.0164]
[1765712055475,0.29735654,3091.2,3090.1,0.0164]
[1765712055680,0.29735654,3091.1,3090.1,0.0164]
[1765712055881,0.29735654,3091.0,3090.1,0.0164]
[1765712056081,0.29735654,3090.9,3090.1,0.0164]
[1765712056394,0.29735654,3090.8,3089.6,6.968921]
[1765712056600,0.29735654,3090.7,3089.8,0.0164]
[1765712056799,0.29735654,3090.6,3089.8,0.0164]
[1765712057000,0.407504,3090.9,3089.8,0.0164]
[1765712057215,0.29733039,3090.8,3090.7,0.0164]
[1765712057512,0.29733039,3090.8,3089.9,0.0323635]
[1765712057684,0.405504,3091.0,3090.0,0.0164]
[1765712057685,0.29733039,3090.7,3090.0,0.0164]
[1765712057881,0.29733039,3090.6,3090.0,0.0164]
[1765712058115,0.6955,3091.2,3090.0,0.0164]
[1765712058310,0.29739516,3091.1,3090.5,0.0164]
[1765712058615,0.29739516,3091.0,3090.5,0.0164]
[1765712058813,0.29739516,3090.9,3090.0,0.0164]
[1765712059016,0.4858,3090.1,3089.3,0.002]
[1765712059317,0.514,3090.5,3089.3,0.0184]